Cogmind - Beta 15 X1 @@@ ROGUE MODE // 2024.11.17 @ 14:09:15 Player: Plexion Result: Self-destructed Performance ------------- Evolutions (5) 2500 Regions Visited (18) 3600 Robots Destroyed (272) 1360 Value Destroyed (9206) 9206 Prototype IDs (31) 620 Alien Tech Used (0) 0 Bonus (1292) 1292 TOTAL SCORE: 18578 Bonus ------- High Alert Combat Kills 283 Follower Combat Kills 1213 Network Hubs Disabled 200 Registered with UFD 300 Met Imprinter 300 Met Zhirov 300 Built Enhanced Grunts 300 Met R17 at Cetus 500 Friendly Fire -2104 Cogmind --------- Core Integrity 730/1000 Matter 43/300 Energy 515/515 System Corruption 26% Temperature Cool (0) Movement Immobile (Siege) Location -5/Hub_04(d) Parts ------- > --- POWER (2) -------- Angular Momentum Engine Neutrino Core > --- PROPULSION (4) --- Centrium Heavy Treads Centrium Heavy Treads > --- UTILITY (8) ------ Advanced Heat Sink (fused) Advanced Cooling System Huge Storage Unit Advanced Targeting Computer Centrium Medium Armor Plating Medium Regenerative Plating Improved Hacking Suite > --- WEAPON (3) ------- Advanced Variable Charge Gun Advanced KE Penetrator Advanced KE Penetrator > --- INVENTORY (25) --- Light Angular Momentum Engine Centrium Heavy Treads Centrium Heavy Treads Centrium Heavy Treads High-capacity Storage Unit Advanced Energy Well (500) High-capacity Matter Pod (200) Deep Structural Scanner Experimental Terrain Scanner Surveybot 17 Chip Seismic Detector Advanced Force Field Advanced Hacking Suite Advanced System Shield Long-range Proton Cannon Advanced KE Penetrator Rocket Array Plasma Cutter CR-A16's Pointy Stick Peak State ------------ > --- POWER ------------ Light Angular Momentum Engine Quantum Reactor > --- PROPULSION ------- Centrium Heavy Treads Centrium Heavy Treads > --- UTILITY ---------- Advanced Heat Sink Advanced Cooling System Huge Storage Unit Advanced Targeting Computer Centrium Medium Armor Plating Improved Powered Armor Advanced Force Field Improved Hacking Suite > --- WEAPON ----------- Advanced Variable Charge Gun Advanced KE Penetrator Advanced KE Penetrator > --- INVENTORY -------- Centrium Heavy Treads Centrium Heavy Treads Centrium Heavy Treads Advanced Heat Sink High-capacity Storage Unit Advanced Energy Well High-capacity Matter Pod Deep Structural Scanner Experimental Terrain Scanner Surveybot 17 Chip Seismic Detector Centrium Medium Armor Plating Medium Regenerative Plating Advanced Hacking Suite Advanced System Shield Advanced Variable Charge Gun Advanced KE Penetrator Advanced KE Penetrator Rocket Array Plasma Cutter Makeshift Axe CR-A16's Pointy Stick [Rating: 132] Favorites ----------- Power Cooled Ion Engine Engine Cooled Ion Engine Power Core Light Fission Core Reactor Quantum Reactor Propulsion Armored Treads Treads Armored Treads Wheel Armored Huge Wheel Utility Huge Storage Unit Device Seismic Detector Storage Huge Storage Unit Processor Advanced Targeting Computer Hackware Improved Hacking Suite Protection Medium Reactive Plating Weapon Overtuned Coil Gun Energy Gun Advanced Variable Charge Gun Energy Cannon Heavy Phase Cannon Ballistic Gun Overtuned Coil Gun Launcher Rocket Array Special Weapon Plasma Cutter Slashing Weapon Axe Piercing Weapon CR-A16's Pointy Stick Special Melee Weapon Datajack Build | -11 -10 -10 -9 -9 -8 -8 -8 -8 -6 -6 -6 -6 -5 -5 -5 -5 -5 -5 ------- Run | Yrd Mat Min Mat Min Mat Sto Rec Scr Fac Low Low Zio Pro Fac Ext Cet Arc Hub Slots Evolved 10 | . . . 2 . 2 . . . 4 . . . . 2 . . . . Power 1 | . . . . . . . . . 1 . . . . . . . . . Propulsion 2 | . . . 1 . 1 . . . . . . . . . . . . . Utility 6 | . . . 1 . 1 . . . 2 . . . . 2 . . . . Weapon 1 | . . . . . . . . . 1 . . . . . . . . . Parts Attached 144 | 7 5 7 26 1 16 13 1 4 11 . 4 4 2 5 15 18 . 5 Power 19 | 1 2 1 2 . . 1 . . 2 . 1 1 . 1 3 2 . 2 Engine 12 | 1 2 1 2 . . 1 . . 1 . 1 . . 1 . 1 . 1 Core 6 | . . . . . . . . . 1 . . 1 . . 3 . . 1 Reactor 1 | . . . . . . . . . . . . . . . . 1 . . Propulsion 36 | 2 . 2 9 . 6 5 . 3 2 . 1 . 1 . 3 2 . . Treads 31 | 2 . 2 9 . 6 5 . 1 2 . 1 . . . 1 2 . . Leg . | . . . . . . . . . . . . . . . . . . . Wheel 5 | . . . . . . . . 2 . . . . 1 . 2 . . . Hover . | . . . . . . . . . . . . . . . . . . . Flight . | . . . . . . . . . . . . . . . . . . . Utility 50 | 2 1 2 10 . 4 4 . 1 4 . 2 . . 4 6 9 . 1 Device 22 | 1 . 1 5 . . 1 . . 3 . 1 . . 3 2 4 . 1 Storage 5 | 1 1 1 1 . . . . . . . . . . . . 1 . . Processor 3 | . . . . . 2 1 . . . . . . . . . . . . Hackware 2 | . . . . . . . . . . . . . . . 1 1 . . Protection 18 | . . . 4 . 2 2 . 1 1 . 1 . . 1 3 3 . . Artifact . | . . . . . . . . . . . . . . . . . . . Weapon 39 | 2 2 2 5 1 6 3 1 . 3 . . 3 1 . 3 5 . 2 Energy Gun 3 | . . . . . . 1 . . . . . . . . . 2 . . Energy Cannon 1 | . . . . . . . . . . . . . . . . 1 . . Ballistic Gun 22 | 2 2 1 3 . 6 1 . . 3 . . . . . 1 2 . 1 Ballistic Cannon . | . . . . . . . . . . . . . . . . . . . Launcher 6 | . . 1 1 1 . . . . . . . 2 1 . . . . . Special Weapon 2 | . . . . . . . . . . . . . . . 2 . . . Impact Weapon . | . . . . . . . . . . . . . . . . . . . Slashing Weapon 3 | . . . . . . 1 1 . . . . 1 . . . . . . Piercing Weapon 1 | . . . . . . . . . . . . . . . . . . 1 Special Melee Weapon 1 | . . . 1 . . . . . . . . . . . . . . . Unidentified Prototypes 15 | . . . 1 . 2 1 . . . . 1 2 . 1 . 7 . . Corrupted Parts 1 | . . . . . . . . . . . . . . . . . . 1 System Corruption 4 | . . . . . . . . . . . . . . . . . . 4 Parts Lost 31 | . 1 2 3 . 2 . . . . . 4 . 1 . 13 . . 5 Power 8 | . 1 . 1 . . . . . . . 2 . 1 . 2 . . 1 Propulsion 4 | . . 1 . . . . . . . . 1 . . . 2 . . . Utility 13 | . . 1 2 . 1 . . . . . 1 . . . 6 . . 2 Weapon 6 | . . . . . 1 . . . . . . . . . 3 . . 2 Highest Loss Streak 8 | . 1 2 1 . 1 . . . . . 2 . 1 . 8 . . 3 To Critical Strikes . | . . . . . . . . . . . . . . . . . . . Average Backups 21 | 4 11 16 22 25 24 24 25 22 24 24 23 23 23 22 20 22 22 21 Power . | . 1 1 . 1 1 . . . . . . . . . . 1 . . Propulsion 3 | 1 3 5 5 4 3 4 3 2 3 3 2 1 . 1 2 3 3 3 Utility 10 | . 3 4 7 8 11 11 12 12 14 15 14 16 16 13 11 10 12 11 Weapon 6 | . 2 4 8 10 8 7 8 7 6 5 5 5 5 5 4 5 6 5 Tool/Special . | . . . . . . . . . . . . . . . . . . . Unused Backups 49 | . 2 2 5 2 10 2 2 5 5 . 1 . . . . 5 . 8 Power 3 | . 1 . . . . . . . . . . . . . . 2 . . Propulsion 12 | . . . 3 1 . 1 2 1 . . . . . . . 1 . 3 Utility 18 | . . 1 . . 6 . . 3 2 . 1 . . . . 2 . 3 Weapon 16 | . 1 1 2 1 4 1 . 1 3 . . . . . . . . 2 Tool/Special . | . . . . . . . . . . . . . . . . . . . Average Slot Usage (%) 95 | . 99 97 99 100 99 99 100 99 92 93 89 89 88 85 82 83 88 85 Engine 8 | . 14 14 10 11 9 8 9 9 6 6 4 6 3 2 3 1 5 5 Core 1 | . . . . . . . . . 5 6 4 2 6 5 4 4 . 3 Treads 28 | . 27 27 33 33 35 36 36 34 26 26 26 26 23 11 8 9 11 11 Device 9 | . 14 11 10 11 5 . . . 12 13 13 13 13 17 16 11 17 14 Storage 8 | . 14 14 11 11 9 9 9 8 6 6 6 6 6 5 5 5 5 5 Processor 5 | . . . . . 8 9 9 9 6 6 6 6 6 5 5 5 5 5 Protection 10 | . . . 10 11 12 16 18 17 6 6 6 6 6 10 10 16 11 10 Ballistic Gun 15 | . 27 27 21 22 17 17 17 . 19 20 20 6 19 17 10 7 11 10 Slashing Weapon 3 | . . . . . . . . 18 . . . 12 . . 2 1 . . Peak Build Rating 132 | 7 11 11 18 18 33 40 41 43 68 69 69 65 65 85 83 132 132 132 Average Rating 43 | 5 9 10 15 17 27 36 40 39 66 67 64 57 62 79 75 117 132 126 On Entrance 50 | . 7 11 11 17 17 33 40 40 43 66 69 60 65 65 82 75 132 132 Naked Turns . | . . . . . . . . . . . . . . . . . . . Heaviest Build 163 | 12 34 53 99 99 122 123 119 121 137 136 136 133 133 148 154 163 163 163 Greatest Support 160 | 40 40 40 60 60 83 83 80 80 80 76 76 76 76 28 56 160 160 160 Greatest Overweight (x) 5 | . . 1 1 1 1 1 1 3 1 1 2 1 4 5 5 2 1 1 Average Overweight (x) 1 | . . . . 1 1 1 1 . 1 1 1 1 1 5 4 . 1 . Largest Inventory Capacity 25 | 8 15 20 25 25 25 25 25 25 25 25 25 25 25 25 25 25 25 25 Average Capacity 23 | 5 13 18 23 25 25 25 25 23 25 25 25 25 25 25 25 25 25 25 Most Carried 25 | 5 15 18 25 25 25 25 25 25 25 25 25 25 25 25 25 25 25 25 Average Carried 22 | 4 11 16 22 25 24 24 24 22 24 25 24 24 24 24 22 24 25 24 Final Capacity 25 | 8 15 20 25 25 25 25 25 25 25 25 25 25 25 25 25 25 25 25 Final Carried 25 | 5 15 17 25 25 24 25 25 25 25 25 25 25 23 24 19 25 25 22 Class Distribution -------------------- 45% | Mutant 28% | Scrapper 19% | Scavenger-Mutant 4% | Scavenger-Tank Dominant Class ---------------- Mutant | -10/Materials Scavenger-Mutant | -10/Mines Scavenger-Mutant | -9/Materials Scavenger-Mutant | -9/Mines Mutant | -8/Materials Mutant | -8/Storage Mutant | -8/Recycling Mutant | -8/Scraptown Scrapper | -6/Factory Scrapper | -6/Lower Caves Scrapper | -6/Lower Caves Scrapper | -6/Zion Scrapper | -5/Proximity Caves Scrapper | -5/Factory Commander-Scrapper | -5/Extension Scavenger-Tank | -5/Cetus Scavenger-Tank | -5/Archives Scavenger-Tank | -5/Hub_04(d) Resources | -11 -10 -10 -9 -9 -8 -8 -8 -8 -6 -6 -6 -6 -5 -5 -5 -5 -5 -5 ----------- Run | Yrd Mat Min Mat Min Mat Sto Rec Scr Fac Low Low Zio Pro Fac Ext Cet Arc Hub Matter Collected 8609 | 316 532 367 872 217 823 894 17 85 516 414 679 112 328 96 1537 393 . 411 Remotely 292 | . . . . . . . . . . . . . . . 292 . . . Salvage Created 11430 | 69 697 354 836 101 1096 1505 50 . 883 232 924 . 637 180 1849 339 . 1678 Parts 643 | 11 47 45 70 7 63 86 6 . 58 8 36 . 23 8 69 26 . 80 Haulers Intercepted 14 | . 2 . 2 . 3 6 . . . . 1 . . . . . . . Recyclers Shooed 10 | 1 2 . . . . 3 . . 1 . . . . . 3 . . . Parts Field Recycled . | . . . . . . . . . . . . . . . . . . . Retrieved Matter . | . . . . . . . . . . . . . . . . . . . Parts Self-Destructed 63 | . . . . . . . . . . 12 29 . 22 . . . . . Prevented . | . . . . . . . . . . . . . . . . . . . Kills | -11 -10 -10 -9 -9 -8 -8 -8 -8 -6 -6 -6 -6 -5 -5 -5 -5 -5 -5 ------- Run | Yrd Mat Min Mat Min Mat Sto Rec Scr Fac Low Low Zio Pro Fac Ext Cet Arc Hub Combat Hostiles Destroyed 188 | . 14 18 18 4 20 16 1 . 15 4 15 . 13 2 23 3 . 22 Melee 2 | . . . . . . . . . . . . . . . 2 . . . Guns 156 | . 14 15 12 2 17 16 1 . 15 4 14 . 9 2 11 2 . 22 Cannons 1 | . . . . . . . . . . . . . . . . 1 . . AOE 29 | . . 3 6 2 3 . . . . . 1 . 4 . 10 . . . Classes Destroyed 22 | 1 8 1 . 1 2 . . . 2 1 1 . 3 . 1 . . 1 Worker 13 | . 1 2 . . 1 1 . . 1 . . . . . 4 . . 3 Builder 10 | . 2 . 1 . . 3 . . 1 . . . . . 2 . . 1 Tunneler 14 | 4 . 3 1 . . . . . . . . . . . 6 . . . Hauler 14 | . 2 . 2 . 3 6 . . . . 1 . . . . . . . Recycler 14 | . 2 . 1 . . 4 . . . . . . . . 6 . . 1 Minesweeper 1 | . . . . . . . . . . . . . 1 . . . . . Operator 3 | . 1 . . . 1 . . . . . . . . . 1 . . . Drone 2 | . . . . . . . . . . . . . 2 . . . . . Watcher 11 | . 1 . 3 . 1 . . . . . . . . 2 2 . . 2 Swarmer 42 | . 6 15 7 . . . . . 7 . 4 . . . 3 . . . Grunt 75 | . 8 1 4 3 15 5 . . 1 3 9 . 7 1 5 . . 13 Brawler 2 | . . . . . 1 . . . . . . . 1 . . . . . Duelist 2 | . . . . . . . . . . 1 . . 1 . . . . . Protector 1 | . . . . . . . . . . . . . 1 . . . . . Sentry 40 | . . 2 7 . 3 9 1 . 4 . 1 . 1 1 8 . . 3 Demolisher 2 | . . . . 1 . . . . . . . . . . 1 . . . Specialist 3 | . . . . . . . . . . . . . . . 1 . . 2 Hunter 9 | . . . . . 1 2 . . 2 . . . . . 2 . . 2 Programmer 2 | . . . . . . . . . 1 . . . . . 1 . . . Heavy 1 | . . . . . . . . . . . . . . . . . . 1 Behemoth 4 | . . . . . . . . . . . 1 . . . 2 . . 1 Cetus Guard 3 | . . . . . . . . . . . . . . . . 3 . . Scrapoid 2 | . . . . . . . . . 2 . . . . . . . . . Decomposer 1 | . . . . . . . . . . . 1 . . . . . . . Butcher 1 | . . . . . . . . . . . . . . . . 1 . . Best Kill Streak 24 | 3 5 4 6 3 9 6 1 . 7 4 5 . 10 2 24 2 . 7 Combat Bots Only 10 | . 5 3 6 3 5 3 1 . 6 4 5 . 10 1 8 2 . 6 Max Kills in Single Turn 4 | 1 2 3 4 2 3 2 1 . 2 2 2 . 2 1 3 1 . 2 Gunslinging 1 | . 1 . . . . . . . 1 1 1 . 1 . . . . 1 Exploded 4 | . . 1 4 2 3 . . . . . 1 . 2 . 2 . . . Melee 1 | . . . . . . . . . . . . . . . 1 . . . Uniques/NPCs Destroyed 1 | . . . . . . . . . . . . . . . . 1 . . A7 (-5/Cetus) Combat | -11 -10 -10 -9 -9 -8 -8 -8 -8 -6 -6 -6 -6 -5 -5 -5 -5 -5 -5 -------- Run | Yrd Mat Min Mat Min Mat Sto Rec Scr Fac Low Low Zio Pro Fac Ext Cet Arc Hub Hostile Shots Fired 1041 | . 59 78 87 10 93 73 2 . 130 8 85 . 50 7 158 23 . 178 Missed 299 | . 14 27 25 2 30 13 1 . 49 1 28 . 18 3 45 6 . 37 Damage Taken 12591 | . 468 477 725 147 789 764 10 . 828 133 935 . 697 128 2628 366 381 3115 Core 879 | . 72 122 24 40 71 62 . . 68 . 97 . 53 . 169 29 . 72 Absorbed by Shields 896 | . . . 137 44 184 . . . . . . . . . 221 113 72 125 Reduced by Siege Mode 150 | . . . . . . . . . . . . . . . . . . 150 Ignored by Resistances 892 | . . . . . 25 128 5 . 282 . 136 . 14 7 295 . . . Regen/Repaired (Parts) 741 | . . . 93 . 66 171 . . . 10 78 120 20 10 151 14 . 8 Core Remaining (%) 71 | 100 . 22 . 84 . . . 75 . . . . 74 . . . . . Volleys Fired 587 | 21 52 35 70 5 72 66 1 . 34 12 40 . 32 13 67 11 . 56 Largest 3 | 2 2 2 2 2 2 2 2 . 3 3 3 . 3 3 3 3 . 3 Hottest 195 | 40 46 46 46 46 51 56 56 . 96 96 96 . 96 96 96 150 . 195 Shots Fired 1344 | 42 104 65 135 9 140 134 2 . 102 39 114 . 86 31 154 22 . 165 Gun 1292 | 42 104 60 130 8 136 134 2 . 102 39 112 . 81 31 131 15 . 165 Cannon 6 | . . . . . . . . . . . . . . . . 6 . . Launcher 43 | . . 5 5 1 4 . . . . . 2 . 5 . 21 . . . Special 3 | . . . . . . . . . . . . . . . 2 1 . . Kinetic 1233 | 42 104 60 130 8 136 134 2 . 102 39 112 . 81 31 131 13 . 108 Thermal 66 | . . . . . . . . . . . . . . . 1 8 . 57 Explosive 43 | . . 5 5 1 4 . . . . . 2 . 5 . 21 . . . Electromagnetic . | . . . . . . . . . . . . . . . . . . . Robot Hit Streak 52 | 5 9 7 9 4 26 18 2 . 14 8 12 . 15 6 18 6 . 52 Robot Miss Streak 6 | 3 4 6 3 3 3 4 . . 5 3 5 . 3 2 4 2 . 3 Penetration Max 1 | . . . . . 1 1 . . 1 1 1 . . 1 1 1 . 1 Secondary Targets 23 | . 5 2 1 . 2 . . . 4 1 2 . 2 . 2 . . 2 Max Gunslinging Chain 1 | . 1 1 1 . 1 . . . 1 1 1 . 1 . 1 . . 1 Shots Hit Robots 897 | 21 70 36 88 4 106 94 2 . 77 16 73 . 58 15 93 20 . 124 Core Hits 554 | 6 39 26 37 6 54 38 1 . 30 7 34 . 36 7 166 12 . 55 Critical Kills 24 | . . . 1 . . 3 . . . 1 2 . 3 1 2 1 . 10 Critical Parts Destroyed 31 | . . . 1 . . 2 . . 3 1 5 . 2 1 2 1 . 13 Critical Strikes 59 | . . . 2 . . 5 . . 5 2 7 . 5 3 4 3 . 23 Destroy 57 | . . . 2 . . 5 . . 4 2 7 . 5 3 4 2 . 23 Sever 2 | . . . . . . . . . 1 . . . . . . 1 . . Melee Attacks 47 | . . . 1 . . 3 . . 15 . . 1 . . 18 7 . 2 Impact . | . . . . . . . . . . . . . . . . . . . Slashing 44 | . . . . . . 3 . . 15 . . 1 . . 18 7 . . Piercing 2 | . . . . . . . . . . . . . . . . . . 2 Sneak Attacks 21 | . . . 1 . . 1 . . 12 . . . . . . 7 . . Combat Hostiles . | . . . . . . . . . . . . . . . . . . . Follow-up Attacks 1 | . . . . . . . . . . . . . . . 1 . . . Damage Inflicted 28445 | 249 945 834 1888 197 2206 2121 42 . 2936 504 2380 . 2238 489 6775 919 . 3722 Guns 19863 | 249 852 558 1377 61 1671 2008 42 . 1986 504 2176 . 1466 489 2359 343 . 3722 Cannons 211 | . . . . . . . . . . . . . . . . 211 . . Explosions 6365 | . . 249 501 118 520 . . . 86 . 204 . 772 . 3915 . . . Melee 1785 | . . . . . . 66 . . 864 . . . . . 490 365 . . Ramming 210 | . 93 27 10 18 15 47 . . . . . . . . . . . . Kinetic 18480 | 249 852 558 1377 61 1671 2008 42 . 1986 504 2176 . 1466 489 2359 303 . 2379 Thermal 1605 | . . . . . . . . . . . . . . . 11 251 . 1343 Explosive 6365 | . . 249 501 118 520 . . . 86 . 204 . 772 . 3915 . . . Electromagnetic . | . . . . . . . . . . . . . . . . . . . Impact . | . . . . . . . . . . . . . . . . . . . Slashing 1785 | . . . . . . 66 . . 864 . . . . . 490 365 . . Piercing . | . . . . . . . . . . . . . . . . . . . Highest Corruption 26 | . . . . . 4 4 4 . 1 1 1 1 . 1 6 6 6 26 Average Corruption 3 | . . . . . 2 4 4 . 1 1 1 1 . 1 3 6 6 6 Corruption Purged 1 | . . . . . . . . . . . . . . . . . . 1 Corruption Blocked . | . . . . . . . . . . . . . . . . . . . Effects 174 | . . . . . 5 43 31 . 4 10 7 1 . 3 31 12 5 22 Message Errors 38 | . . . . . . 10 9 . 2 1 4 . . . 6 2 . 4 Matter Fused 39 | . . . . . 3 11 2 . . 1 1 . . 1 6 4 1 9 Heat Flow Errors 25 | . . . . . 1 8 4 . 1 1 . . . 1 4 1 2 2 Energy Discharges 20 | . . . . . . 3 6 . . 2 2 . . . 5 . 1 1 Parts Fused 2 | . . . . . . . 1 . . . . . . . . 1 . . Data Loss (minor) 24 | . . . . . 1 3 6 . 1 1 . 1 . 1 5 2 1 2 Data Loss (major) 5 | . . . . . . 2 1 . . . . . . . 1 . . 1 Misfires 9 | . . . . . . 3 . . . 3 . . . . 2 1 . . Alerts 7 | . . . . . . 2 2 . . 1 . . . . 1 1 . . Weapon Failures 5 | . . . . . . 1 . . . . . . . . 1 . . 3 Overload Shots . | . . . . . . . . . . . . . . . . . . . Overflow Damage 112 | . . . 67 . . . . . 29 . . . . . 16 . . . Projectiles . | . . . . . . . . . . . . . . . . . . . Explosions 83 | . . . 67 . . . . . . . . . . . 16 . . . Melee 29 | . . . . . . . . . 29 . . . . . . . . . Knockbacks 2 | . 1 1 . . . . . . . . . . . . . . . . Impact 2 | . 1 1 . . . . . . . . . . . . . . . . Kinetic . | . . . . . . . . . . . . . . . . . . . Secondary . | . . . . . . . . . . . . . . . . . . . Self-Inflicted Damage 314 | . . 32 86 . . . . . . . . . 71 43 82 . . . Shots 8 | . . 1 3 . . . . . . . . . 1 1 2 . . . Rammed 29 | . 14 3 2 1 3 6 . . . . . . . . . . . . Targets Rammed 32 | . 16 4 2 1 3 6 . . . . . . . . . . . . Kicked . | . . . . . . . . . . . . . . . . . . . Crushed 3 | . 2 1 . . . . . . . . . . . . . . . . Highest Temperature 374 | . 29 23 15 . 221 243 225 . 325 185 274 . 374 168 317 159 215 120 Average Temperature 77 | . 5 12 4 . 30 46 101 . 109 72 107 . 138 55 80 104 101 63 Received Heat Transfer 2972 | . 174 84 212 36 351 306 . . 72 63 292 . 228 27 637 40 . 450 Effects 3 | . . . . . . . . . 1 . 2 . . . . . . . Energy Bleed 1 | . . . . . . . . . 1 . . . . . . . . . Interference 2 | . . . . . . . . . . . 2 . . . . . . . Siege Activations 5 | . . . . . . . . . . . . . . . . 1 . 4 Total Turns 141 | . . . . . . . . . . . . . . . . 10 . 131 Longest Duration 86 | . . . . . . . . . . . . . . . . 10 . 86 Martial Activations . | . . . . . . . . . . . . . . . . . . . Shielding Activations . | . . . . . . . . . . . . . . . . . . . Robots Disrupted . | . . . . . . . . . . . . . . . . . . . Combat Hostiles . | . . . . . . . . . . . . . . . . . . . Robots Corrupted . | . . . . . . . . . . . . . . . . . . . Combat Hostiles . | . . . . . . . . . . . . . . . . . . . Parts Fried . | . . . . . . . . . . . . . . . . . . . Impact Corruptions . | . . . . . . . . . . . . . . . . . . . Robots Melted . | . . . . . . . . . . . . . . . . . . . Combat Hostiles . | . . . . . . . . . . . . . . . . . . . Parts Melted 2 | . . . . . . . . . . . . . . . . . . 2 Heat Transferred 1925 | . . . . . . . . . . . . . . . 20 240 . 1665 Parts Sabotaged . | . . . . . . . . . . . . . . . . . . . Parts Stolen . | . . . . . . . . . . . . . . . . . . . Parts Stripped . | . . . . . . . . . . . . . . . . . . . Power Chain Reactions . | . . . . . . . . . . . . . . . . . . . Alert | -11 -10 -10 -9 -9 -8 -8 -8 -8 -6 -6 -6 -6 -5 -5 -5 -5 -5 -5 ------- Run | Yrd Mat Min Mat Min Mat Sto Rec Scr Fac Low Low Zio Pro Fac Ext Cet Arc Hub Maximum Alert Level 2 | . . . 1 . 1 1 . . 1 . . . . 1 2 1 2 2 Low Security (%) 84 | 100 100 100 92 100 99 94 100 . 77 . . . . 84 34 . 55 43 Level 1 9 | . . . 7 . . 5 . . 22 . . . . 15 14 100 6 29 Level 2 5 | . . . . . . . . . . . . . . . 51 . 37 26 Level 3 . | . . . . . . . . . . . . . . . . . . . Level 4 . | . . . . . . . . . . . . . . . . . . . Level 5 . | . . . . . . . . . . . . . . . . . . . High Security . | . . . . . . . . . . . . . . . . . . . Max Security . | . . . . . . . . . . . . . . . . . . . Peak Influence 645 | 5 112 89 242 82 202 217 44 . 354 . . . . 227 534 372 448 645 Initial 269 | . . 9 10 3 . . 28 . . . . . . 203 19 269 113 137 Average 91 | . 38 36 48 7 69 80 9 . 82 . . . . 138 305 306 247 283 Influence Increases 7834 | 20 441 549 581 98 598 642 212 . 638 90 335 . 245 341 1513 349 372 810 Destroy 0b10 Robot/C 4280 | . 280 420 360 80 400 320 20 . 340 80 300 . 200 40 680 160 160 440 Destroy 0b10 Robot/NC 435 | 20 45 25 40 . 30 70 . . 10 . 5 . 20 10 105 10 10 35 Destroy Leader 838 | . 56 70 110 10 108 142 . . 80 10 30 . 10 14 84 . . 114 Allied During Kill 623 | . . 9 . . . . . . 12 . . . . . 312 123 167 . Successful Hack 179 | . 30 . 13 . 19 26 12 . 18 . . . . 5 56 . . . Select Force Hacks 180 | . . . . . . . 180 . . . . . . . . . . . Disable Machine 390 | . . . 30 . 15 60 . . 105 . . . . 30 75 . 15 60 Destroy Structure 609 | . . 25 28 8 26 9 . . 73 . . . . 92 186 56 20 86 Advance Influence 150 | . . . . . . . . . . . . . . 150 . . . . Partial Spotted 15 | . . . . . . . . . . . . . . . . . . 15 Lose Combat Pursuer 135 | . 30 . . . . 15 . . . . . . 15 . 15 . . 60 Influence Decreases 6294 | 20 415 531 581 101 598 568 228 . 313 294 322 . 160 353 1050 334 90 336 Time Decay 4868 | 20 405 492 411 101 470 418 228 . 261 294 302 . 140 246 490 254 50 286 Lost Part 250 | . 10 . 20 . 20 . . . . . 20 . . . 130 . . 50 Lost Ally 511 | . . 39 . . . . . . 52 . . . 20 . 280 80 40 . Purge Threat 665 | . . . 150 . 108 150 . . . . . . . 107 150 . . . Squads Dispatched 26 | . 2 . 1 . 3 . . . 3 . . . 1 2 6 . . 8 Investigation 4 | . . . . . . . . . 1 . . . . 1 2 . . . Extermination 1 | . . . . . . . . . 1 . . . . . . . . . Reinforcement 16 | . 2 . 1 . 3 . . . 1 . . . . 1 2 . . 6 Assault 4 | . . . . . . . . . . . . . 1 . 2 . . 1 Garrison 1 | . . . . . . . . . . . . . . . . . . 1 Intercept . | . . . . . . . . . . . . . . . . . . . Searches Triggered . | . . . . . . . . . . . . . . . . . . . Construction Impeded 5 | . . . . . 1 . . . . . . . . . 1 . . 3 Haulers Reinforced 2 | . . . . . . . . . 1 . . . . . . . . 1 Active Scanning Responses . | . . . . . . . . . . . . . . . . . . . Cargo Convoy Interrupts 1 | . . . . . . . . . 1 . . . . . . . . . Stealth | -11 -10 -10 -9 -9 -8 -8 -8 -8 -6 -6 -6 -6 -5 -5 -5 -5 -5 -5 --------- Run | Yrd Mat Min Mat Min Mat Sto Rec Scr Fac Low Low Zio Pro Fac Ext Cet Arc Hub Distress Signals 22 | . 2 . 2 1 1 5 . . 1 . . . 1 . 1 2 1 5 Communications Jammed 30 | . . . . . . . . . . . . . . 5 25 . . . Distress Signals 30 | . . . . . . . . . . . . . . 5 25 . . . Times Spotted 300 | . 36 19 25 4 25 33 1 . 25 4 15 . 14 4 36 9 5 45 Peak Tracking Total 16 | . 6 3 5 3 4 4 1 . 9 4 5 . 5 2 8 5 8 16 Tactical Retreats 8 | . 2 . . . . 1 . . . . . . 1 . 1 . . 3 Traps | -11 -10 -10 -9 -9 -8 -8 -8 -8 -6 -6 -6 -6 -5 -5 -5 -5 -5 -5 ------- Run | Yrd Mat Min Mat Min Mat Sto Rec Scr Fac Low Low Zio Pro Fac Ext Cet Arc Hub Traps Triggered 14 | . 3 . 1 . 1 2 . . 2 . . . . . 3 . . 2 Indirectly . | . . . . . . . . . . . . . . . . . . . Trap Hack Attempts 21 | . . . 21 . . . . . . . . . . . . . . . Triggered . | . . . . . . . . . . . . . . . . . . . Disarmed . | . . . . . . . . . . . . . . . . . . . Reprogrammed 3 | . . . 3 . . . . . . . . . . . . . . . Reused . | . . . . . . . . . . . . . . . . . . . Traps Extracted 3 | . . . 3 . . . . . . . . . . . . . . . Installed . | . . . . . . . . . . . . . . . . . . . Triggered . | . . . . . . . . . . . . . . . . . . . Most Traps Carried 4 | . . . 3 4 4 . . . . . . . . . . . . . Machines | -11 -10 -10 -9 -9 -8 -8 -8 -8 -6 -6 -6 -6 -5 -5 -5 -5 -5 -5 ---------- Run | Yrd Mat Min Mat Min Mat Sto Rec Scr Fac Low Low Zio Pro Fac Ext Cet Arc Hub Machines Disabled 30 | . . . 2 . 1 4 . . 7 . . . 1 2 8 . 1 4 Max in Single Turn 4 | . . . 1 . 1 1 . . 4 . . . 1 2 1 . . 1 Garrison Access 3 | . . . . . . 1 . . 1 . . . . . . . . 1 Network Hub 1 | . . . . . . . . . . . . . . . . . . 1 Machines Repaired . | . . . . . . . . . . . . . . . . . . . Machines Dismantled 3 | . . . . . . . . . . . . . . . 2 . . 1 Machines Sabotaged . | . . . . . . . . . . . . . . . . . . . Overloaded Fab Kills . | . . . . . . . . . . . . . . . . . . . Hacking | -11 -10 -10 -9 -9 -8 -8 -8 -8 -6 -6 -6 -6 -5 -5 -5 -5 -5 -5 --------- Run | Yrd Mat Min Mat Min Mat Sto Rec Scr Fac Low Low Zio Pro Fac Ext Cet Arc Hub Machines Accessed 71 | . 6 . 7 . 7 12 11 2 7 . . . . 2 14 . . 3 Terminals 57 | . 6 . 6 . 6 10 5 . 5 . . . . 2 14 . . 3 Fabricators . | . . . . . . . . . . . . . . . . . . . Repair Stations 3 | . . . 1 . 1 1 . . . . . . . . . . . . Recycling Units 7 | . . . . . . . 6 . 1 . . . . . . . . . Scanalyzers . | . . . . . . . . . . . . . . . . . . . Garrison Access 2 | . . . . . . 1 . . 1 . . . . . . . . . Total Hacks 192 | . 16 . 28 . 25 25 19 21 19 . . . . 8 25 . . 6 Successful 112 | . 10 . 16 . 16 16 12 21 6 . . . . 5 9 . . 1 Failed 79 | . 6 . 11 . 9 9 7 . 13 . . . . 3 16 . . 5 Catastrophic 10 | . . . 2 . 1 1 . . 1 . . . . . 5 . . . Database Lockouts 1 | . . . 1 . . . . . . . . . . . . . . . Manual 112 | . 16 . 23 . 20 14 17 . 7 . . . . 2 10 1 . 2 Terminals 153 | . 16 . 26 . 23 21 12 . 16 . . . . 8 25 . . 6 Fabricators . | . . . . . . . . . . . . . . . . . . . Repair Stations 6 | . . . 2 . 2 2 . . . . . . . . . . . . Recycling Units 9 | . . . . . . . 7 . 2 . . . . . . . . . Scanalyzers . | . . . . . . . . . . . . . . . . . . . Garrison Access 3 | . . . . . . 2 . . 1 . . . . . . . . . Terminal Hacks 55 | . 2 . 4 . 3 7 1 21 2 . . . . 5 9 . . 1 Record 21 | . . . . . . . . 21 . . . . . . . . . . Robot Analysis 3 | . 2 . 1 . . . . . . . . . . . . . . . Prototype ID Bank 3 | . . . . . 2 . 1 . . . . . . . . . . . Open Door 11 | . . . . . . 3 . . . . . . . . 8 . . . Terminal Index 3 | . . . 1 . . . . . . . . . . 1 . . . 1 Recycling Unit Index 1 | . . . . . . . . . 1 . . . . . . . . . Alert Level 2 | . . . . . . 2 . . . . . . . . . . . . Unreport Threat 5 | . . . 1 . 1 1 . . . . . . . 1 1 . . . Locate Traps 4 | . . . 1 . . 1 . . . . . . . 2 . . . . Hauler Manifests 1 | . . . . . . . . . 1 . . . . . . . . . Zone Layout 1 | . . . . . . . . . . . . . . 1 . . . . Fabricator Hacks . | . . . . . . . . . . . . . . . . . . . Repair Station Hacks 6 | . . . 2 . 2 2 . . . . . . . . . . . . Scan Component 3 | . . . 1 . 1 1 . . . . . . . . . . . . Repair 3 | . . . 1 . 1 1 . . . . . . . . . . . . Recycling Unit Hacks . | . . . . . . . . . . . . . . . . . . . Scanalyzer . | . . . . . . . . . . . . . . . . . . . Garrison Access Hacks 2 | . . . . . . 1 . . 1 . . . . . . . . . Seal Access 2 | . . . . . . 1 . . 1 . . . . . . . . . Unauthorized Hacks 49 | . 8 . 10 . 11 6 11 . 3 . . . . . . . . . Terminals 42 | . 8 . 10 . 11 6 5 . 2 . . . . . . . . . Assimilate 2 | . . . 1 . 1 . . . . . . . . . . . . . Botnet 10 | . 3 . 3 . 3 . . . 1 . . . . . . . . . Operators 3 | . . . 1 . 1 . . . 1 . . . . . . . . . Skim 27 | . 5 . 5 . 6 6 5 . . . . . . . . . . . Fabricators . | . . . . . . . . . . . . . . . . . . . Repair Stations 1 | . . . . . . . . . 1 . . . . . . . . . Recycling Units 6 | . . . . . . . 6 . . . . . . . . . . . Tunnel 6 | . . . . . . . 6 . . . . . . . . . . . Scrapoids 1 | . . . . . . . . . 1 . . . . . . . . . Scanalyzers . | . . . . . . . . . . . . . . . . . . . Garrison Access . | . . . . . . . . . . . . . . . . . . . Data Cores Recovered 1 | . . . . . . . . . . . . . . . 1 . . . Used . | . . . . . . . . . . . . . . . . . . . Hacking Detections 45 | . 6 . 6 . 5 8 2 . 4 . . . . 1 9 1 . 3 Full Trace Events 3 | . . . . . . . . . . . . . . 1 2 . . . Feedback Events 1 | . . . . . . . . . . . . . . 1 . . . . Corruption 1 | . . . . . . . . . . . . . . 1 . . . . Feedback Blocked . | . . . . . . . . . . . . . . . . . . . Robot Schematics Acquired 4 | . . . . . . . . . . . . 4 . . . . . . Robots Built . | . . . . . . . . . . . . . . . . . . . Authchips . | . . . . . . . . . . . . . . . . . . . Time . | . . . . . . . . . . . . . . . . . . . Total Robot Build Rating . | . . . . . . . . . . . . . . . . . . . Part Schematics Acquired 12 | . . . . . . . . . . . . 12 . . . . . . Parts Built . | . . . . . . . . . . . . . . . . . . . Authchips . | . . . . . . . . . . . . . . . . . . . Time . | . . . . . . . . . . . . . . . . . . . Total Part Build Rating . | . . . . . . . . . . . . . . . . . . . Parts Repaired 3 | . . . 1 . 1 1 . . . . . . . . . . . . Time 102 | . . . 32 . 26 44 . . . . . . . . . . . . Parts Recycled . | . . . . . . . . . . . . . . . . . . . Recycled Matter . | . . . . . . . . . . . . . . . . . . . Retrieved Matter . | . . . . . . . . . . . . . . . . . . . Retrieved Components . | . . . . . . . . . . . . . . . . . . . Parts Scanalyzed . | . . . . . . . . . . . . . . . . . . . Part Schematics Acquired . | . . . . . . . . . . . . . . . . . . . Parts Damaged . | . . . . . . . . . . . . . . . . . . . Bothacking | -11 -10 -10 -9 -9 -8 -8 -8 -8 -6 -6 -6 -6 -5 -5 -5 -5 -5 -5 ------------ Run | Yrd Mat Min Mat Min Mat Sto Rec Scr Fac Low Low Zio Pro Fac Ext Cet Arc Hub Used RIF Installer . | . . . . . . . . . . . . . . . . . . . Robots Hacked . | . . . . . . . . . . . . . . . . . . . Non-combat . | . . . . . . . . . . . . . . . . . . . Combat . | . . . . . . . . . . . . . . . . . . . Robot Hacks Applied . | . . . . . . . . . . . . . . . . . . . Relay Couplers Released 2 | . . . . . . . . . . . . . . . . . . 2 Machine Destruction 2 | . . . . . . . . . . . . . . . . . . 2 Fabnet Peak Effective % . | . . . . . . . . . . . . . . . . . . . Robots Rewired 9 | . . . . . . . . . . . . . 1 . 8 . . . Allies Hacked . | . . . . . . . . . . . . . . . . . . . Hacks Repelled . | . . . . . . . . . . . . . . . . . . . Allies | -11 -10 -10 -9 -9 -8 -8 -8 -8 -6 -6 -6 -6 -5 -5 -5 -5 -5 -5 -------- Run | Yrd Mat Min Mat Min Mat Sto Rec Scr Fac Low Low Zio Pro Fac Ext Cet Arc Hub Total Allies 37 | . . 3 . 1 . . . . 5 . . . 1 . 22 5 . . Largest Group 12 | . . 3 . 1 . . . . 5 . . . 1 . 12 9 5 . Highest-Rated Group 717 | . . 40 . 31 . . . . 143 . . . 49 . 341 717 406 . Highest-Rated Ally 159 | . . 16 . 31 . . . . 31 . . . 49 . 159 159 96 . Total Orders 6 | . . . . . . . . . 1 . . . 1 . 2 2 . . STAY 4 | . . . . . . . . . 1 . . . 1 . 1 1 . . FOLLOW 2 | . . . . . . . . . . . . . . . 1 1 . . Ally Attacks 195 | . . 41 . . . . . . 21 . . . 4 . 55 46 28 . Total Damage 5089 | . . 372 . . . . . . 314 . . . 145 . 1227 1834 1197 . Kills 33 | . . 3 . . . . . . 2 . . . . . 11 7 10 . Allies Corrupted . | . . . . . . . . . . . . . . . . . . . Allies Melted . | . . . . . . . . . . . . . . . . . . . Intel | -11 -10 -10 -9 -9 -8 -8 -8 -8 -6 -6 -6 -6 -5 -5 -5 -5 -5 -5 ------- Run | Yrd Mat Min Mat Min Mat Sto Rec Scr Fac Low Low Zio Pro Fac Ext Cet Arc Hub Active Infowar (turns) 12645 | 166 2243 1323 1468 1479 482 204 . . 1223 880 975 . 517 527 1049 . . 109 Structural 1127 | . . . . . . . . . 496 276 355 . . . . . . . Seismic 10212 | 166 2243 1323 1468 1479 482 204 . . 727 604 620 . 517 270 . . . 109 Jamming 1576 | . . . . . . . . . . . . . . 527 1049 . . . Robot Analysis Total 3 | . 2 . 1 . . . . . . . . . . . . . . . Derelict Logs Recovered 7 | . . 2 . 1 . . . . . 2 1 1 . . . . . . Drone Launches . | . . . . . . . . . . . . . . . . . . . Drone Recoveries . | . . . . . . . . . . . . . . . . . . . Exploration | -11 -10 -10 -9 -9 -8 -8 -8 -8 -6 -6 -6 -6 -5 -5 -5 -5 -5 -5 ------------- Run | Yrd Mat Min Mat Min Mat Sto Rec Scr Fac Low Low Zio Pro Fac Ext Cet Arc Hub Turns Passed 26290 | 278 2243 1554 1945 1550 1677 2077 1256 3571 1395 946 1489 2134 803 527 1558 554 102 631 Spaces Moved 10636 | 133 976 657 714 613 539 631 497 1519 573 442 646 1021 308 251 711 186 38 181 Core 9 | 9 . . . . . . . . . . . . . . . . . . Treads 9376 | 124 976 657 714 613 539 631 497 1323 573 442 646 1021 241 . . 160 38 181 Legs . | . . . . . . . . . . . . . . . . . . . Wheels 1251 | . . . . . . . . 196 . . . . 67 251 711 26 . . Hover . | . . . . . . . . . . . . . . . . . . . Flight . | . . . . . . . . . . . . . . . . . . . Fastest Speed 50 | 50 160 160 160 240 240 240 250 115 205 205 205 205 160 175 115 130 240 160 Average Speed 208 | 152 160 210 215 240 240 246 250 230 205 205 206 205 204 175 162 162 240 166 Slowest Speed 280 | 160 160 240 240 240 240 250 250 250 250 205 280 205 280 175 175 240 240 240 Overloaded Moves . | . . . . . . . . . . . . . . . . . . . Propulsion Burnouts . | . . . . . . . . . . . . . . . . . . . Robots Hopped . | . . . . . . . . . . . . . . . . . . . Cave-ins Triggered . | . . . . . . . . . . . . . . . . . . . Exploration Rate (%) 64 | 7 98 97 69 100 40 93 78 85 17 74 89 84 53 8 81 57 73 30 Regions Visited 18 Branch Regions 13 Pre-discovered Areas 20 | . . 1 1 . 1 1 10 4 . . . 2 . . . . . . Known Exits Taken 12 | . . 1 . 1 1 1 1 1 1 1 1 1 1 1 . . . . Unknown Exits Taken 6 | 1 1 . 1 . . . . . . . . . . . 1 1 1 . Scrap Searched 16 | . . 1 . 1 . . . 5 . 2 1 4 2 . . . . . Spaces Dug 60 | . . . 10 9 . 1 . . 9 5 12 . . 10 2 . . 2 Terrain Destroyed 721 | . . 31 23 9 21 4 . . 115 23 81 . 114 60 199 3 . 38 Melee 6 | . . . . . . 1 . . 3 . . . . . . . . 2 Projectile 378 | . . . . . . 3 . . 60 23 57 . 65 21 110 3 . 36 AOE 335 | . . 31 23 9 21 . . . 51 . 24 . 49 38 89 . . . Terrain Rammed . | . . . . . . . . . . . . . . . . . . . Walls Destroyed . | . . . . . . . . . . . . . . . . . . . Machines Disabled . | . . . . . . . . . . . . . . . . . . . Actions | -11 -10 -10 -9 -9 -8 -8 -8 -8 -6 -6 -6 -6 -5 -5 -5 -5 -5 -5 --------- Run | Yrd Mat Min Mat Min Mat Sto Rec Scr Fac Low Low Zio Pro Fac Ext Cet Arc Hub Total 13706 | 167 1551 761 990 681 795 1012 510 1601 744 472 762 1058 452 329 987 414 50 370 Wait 1688 | 1 479 47 95 53 113 263 7 . 84 12 50 18 97 50 56 143 13 107 Move 10618 | 132 975 656 713 612 538 630 496 1518 572 441 645 1020 307 250 710 185 37 181 Hop . | . . . . . . . . . . . . . . . . . . . Pick Up 144 | 6 15 5 23 2 15 4 2 35 8 1 3 3 . 3 5 12 . 2 Fast Attach 50 | 6 3 1 1 . 4 7 . 3 1 . 2 3 . 1 8 9 . 1 Attach 44 | 1 1 1 5 . 6 2 . 3 2 . 2 1 1 4 8 2 . 5 Detach 17 | . . . 1 . 3 1 . 2 . . . . . . 2 7 . 1 Swap 189 | . 4 7 35 6 18 17 2 1 21 5 18 7 4 5 12 17 . 10 Drop 157 | . 6 5 23 2 23 13 2 39 7 1 2 5 1 3 2 21 . 2 Fire 587 | 21 52 35 70 5 72 66 1 . 34 12 40 . 32 13 67 11 . 56 Melee 46 | . . . 1 . . 3 . . 15 . . 1 . . 17 7 . 2 Ram . | . . . . . . . . . . . . . . . . . . . Kick . | . . . . . . . . . . . . . . . . . . . Crush 32 | . 16 4 2 1 3 6 . . . . . . . . . . . . Escape Stasis 11 | . . . . . . . . . . . . . . . 11 . . . Rewire 82 | . . . . . . . . . . . . . 10 . 72 . . . Trap 21 | . . . 21 . . . . . . . . . . . . . . . Miscellaneous 20 | . . . . . . . . . . . . . . . 17 . . 3 Route ------- -11/Scrapyard -10/Materials (discovered 5 exits: *Mat x3 / [*Min] / *Sub) -10/Mines (discovered 3 exits: *Mat x2 / Exi) -9/Materials (discovered 2 exits: *Mat / [*Min]) -9/Mines (discovered 2 exits: *Mat x2) -8/Materials (discovered 5 exits: *Fac x3 / *Sto x2) -8/Storage (discovered 2 exits: *Fac / *Rec) -8/Recycling (discovered 2 exits: *Fac / *Scr) -8/Scraptown (discovered 2 exits: *Fac x2) -6/Factory (discovered 4 exits: Fac x2 / *Low x2) -6/Lower Caves -6/Lower Caves (discovered 2 exits: *Fac / *Zio) -6/Zion -5/Proximity Caves -5/Factory -5/Extension (discovered 2 exits: [*Fac] / *Cet) -5/Cetus (discovered 2 exits: [*Fac] / [*Arc]) -5/Archives -5/Hub_04(d) (discovered 2 exits: [*Fac x2]) History --------- Turn | Location | Event 8 | -11/Scrapyard | Discovered new exit (range 15) 279 | -11/Scrapyard | Entered Materials 349 | -10/Materials | Build established: Mutant 618 | -10/Materials | Discovered new exit (range 14) 926 | -10/Materials | Discovered new exit (range 14) 1363 | -10/Materials | Discovered new exit (range 10) 1947 | -10/Materials | Discovered new exit (range 14) 2088 | -10/Materials | Discovered new exit (range 16) 2203 | -10/Materials | Learned location of 2 exits from Subcaves 2269 | -10/Materials | Identified exit to Materials 2269 | -10/Materials | Identified exit to Subcaves 2327 | -10/Materials | Learned location of 1 exit from Recycling 2410 | -10/Materials | Learned Storage garrison access intel 2512 | -10/Materials | Learned 2 Mines zone layouts 2522 | -10/Materials | Entered Mines 2612 | -10/Mines | Learned location of 1 exit from Materials 2613 | -10/Mines | Identified exit to Exiles 2614 | -10/Mines | Discovered exit to Materials (range 8) 2626 | -10/Mines | Assisted by bots powering up and referring to "LRC-V3" 3110 | -10/Mines | Core integrity fell below 50% 3152 | -10/Mines | Received a Rocket Launcher from a helpful Derelict 3272 | -10/Mines | Build established: Scavenger-Mutant 3763 | -10/Mines | Learned location of Storage (-8) 4076 | -10/Mines | Entered Materials 4076 | -9/Materials | Evolved 2 slots: Propulsion x1, Utility x1 4077 | -9/Materials | Identified exit to Materials 4570 | -9/Materials | Central database locked down 4823 | -9/Materials | Repaired Hvy. Assault Rifle 4880 | -9/Materials | Loaded intel: 15 trap records 4924 | -9/Materials | Learned location of 3 exits from Materials 4956 | -9/Materials | Learned 2 Storage zone layouts 5008 | -9/Materials | Learned Storage emergency access door positions 5049 | -9/Materials | Learned location of 1 exit from Storage 5464 | -9/Materials | Discovered new exit (range 9) 6021 | -9/Materials | Entered Mines 6127 | -9/Mines | A weapon hastily lodged in a ceiling crevice suddenly fell to the ground 6263 | -9/Mines | Discovered exit to Materials (range 13) 6437 | -9/Mines | Assembled infested the area 6442 | -9/Mines | Assisted by a Guerilla fighting off Assembled 6725 | -9/Mines | Found a hidden stash of uninstalled traps 7194 | -9/Mines | Received a Mining Laser from a helpful Derelict 7571 | -9/Mines | Entered Materials 7571 | -8/Materials | Evolved 2 slots: Propulsion x1, Utility x1 7572 | -8/Materials | Identified exit to Storage 7573 | -8/Materials | Identified exit to Factory 8163 | -8/Materials | Build established: Mutant 8598 | -8/Materials | Repaired Lgt. Treads 9248 | -8/Materials | Entered Storage 9249 | -8/Storage | Identified exit to Recycling 9252 | -8/Storage | Loaded intel: 1 garrison access location 10256 | -8/Storage | Learned location of 1 exit from Storage 10348 | -8/Storage | Learned Factory security intel 10379 | -8/Storage | Learned location of 2 exits from Lower Caves 10402 | -8/Storage | Loaded intel: 38 machine locations 10434 | -8/Storage | Learned location of 1 exit from Storage 11187 | -8/Storage | Repaired Med. Reactive Plating? 11317 | -8/Storage | Used back door to open Recycling access 11325 | -8/Storage | Entered Recycling 11326 | -8/Recycling | Identified exit to Scraptown 12333 | -8/Recycling | Learned Factory stockpile data 12334 | -8/Recycling | Learned Factory recycling unit intel 12335 | -8/Recycling | Learned location of Zion (-6) 12348 | -8/Recycling | Identified exit to Factory 12519 | -8/Recycling | Scanned before Scraplab entrance 12556 | -8/Recycling | Entered Scraplab 12581 | -8/Recycling | Entered Scraptown 12581 | -8/Scraptown | System corruption cleaned by C-Scrubber 12919 | -8/Scraptown | Visited Spacefarers 12951 | -8/Scraptown | Visited Awakened 12971 | -8/Scraptown | Visited Cyclists 12996 | -8/Scraptown | Visited Shadow of the Wyrm 13031 | -8/Scraptown | Heard Great Nut preacher, LISTEN AND RECITE! 13116 | -8/Scraptown | Discovered exit to Factory (range 11) 13669 | -8/Scraptown | Visited UFD Registry 13669 | -8/Scraptown | Registered with UFD as "Hammerfunk" 13726 | -8/Scraptown | Visited Scrapoid Research Area 13764 | -8/Scraptown | Visited Research Penetration Think Tank 13829 | -8/Scraptown | Visited Abandonware Association 13854 | -8/Scraptown | Learned abandonware demo "ERRANTS.EXE" 13914 | -8/Scraptown | Visited Curators Association 14206 | -8/Scraptown | Visited Botcube Research 14231 | -8/Scraptown | Visited Modified Component R&D 14266 | -8/Scraptown | Visited Infowarlord's Domain 14306 | -8/Scraptown | Visited DA-N13 Charitable Foundation 14329 | -8/Scraptown | Found DCF Scrap (31 items) 14381 | -8/Scraptown | Visited Cartography Club 14636 | -8/Scraptown | Found Surveybot 17 Chip 14680 | -8/Scraptown | Learned location of Lower Caves (-7) 14680 | -8/Scraptown | Learned location of Extension (-5) 14680 | -8/Scraptown | Learned 24 Factory zone layouts 14680 | -8/Scraptown | Learned 12 Research zone layouts 14680 | -8/Scraptown | Learned 4 Recycling zone layouts 14680 | -8/Scraptown | Learned 12 Upper Caves zone layouts 14680 | -8/Scraptown | Learned 24 Upper Caves zone layouts 14680 | -8/Scraptown | Learned 24 Proximity Caves zone layouts 14680 | -8/Scraptown | Learned 4 Hub_04(d) zone layouts 14680 | -8/Scraptown | Learned location of 1 exit from Factory 14680 | -8/Scraptown | Learned location of 2 exits from Factory 14680 | -8/Scraptown | Learned location of 3 exits from Lower Caves 14708 | -8/Scraptown | Found Deep Structural Scanner 15107 | -8/Scraptown | Visited SPCMW 15137 | -8/Scraptown | Visited Science Testing Area 15661 | -8/Scraptown | Found Exp. Terrain Scanner 16106 | -8/Scraptown | Found Scrap Suit 16152 | -8/Scraptown | Entered Factory 16152 | -6/Factory | Evolved 4 slots: Power x1, Utility x2, Weapon x1 16153 | -6/Factory | Identified exit to Lower Caves 16154 | -6/Factory | Identified exit to Factory 16158 | -6/Factory | Loaded intel: 6 recycling unit locations 16381 | -6/Factory | Scrapoids reinforcements arrived? 16455 | -6/Factory | Lost 3 allies 16682 | -6/Factory | Build established: Scrapper 17527 | -6/Factory | Cargo convoy interrupted 17547 | -6/Factory | Entered Lower Caves 17548 | -6/Lower Caves | Identified exit to Lower Caves 18313 | -6/Lower Caves | Learned Factory trap positions 18371 | -6/Lower Caves | Encountered a Warlord checkpoint 18493 | -6/Lower Caves | Entered another Lower Caves area 18494 | -6/Lower Caves | Identified exit to Zion 18566 | -6/Lower Caves | Learned Factory emergency access door positions 18810 | -6/Lower Caves | Attracted the attention of an 0b10 checkpoint 19443 | -6/Lower Caves | Spotted B-75 Beast 19491 | -6/Lower Caves | Destroyed B-75 Beast 19711 | -6/Lower Caves | Found Imp. Powered Armor 19982 | -6/Lower Caves | Entered Zion 19983 | -6/Zion | Identified exit to Proximity Caves 20081 | -6/Zion | System corruption cleaned by Quarantine Array 20172 | -6/Zion | Found Prototype Launcher 20172 | -6/Zion | Identified Rocket Array 20599 | -6/Zion | Learned Factory garrison access intel 20740 | -6/Zion | Found CR-A16's Pointy Stick 20878 | -6/Zion | Turned away by Imprinter 20956 | -6/Zion | Given the Hacking Drone Bay 22116 | -6/Zion | Entered Proximity Caves 22553 | -5/Proximity Caves | Spotter reported a threat 22634 | -5/Proximity Caves | Attracted the attention of an 0b10 outpost 22714 | -5/Proximity Caves | Destroyed 10 combat bots 22806 | -5/Proximity Caves | Spotted B-75 Beast 22919 | -5/Proximity Caves | Entered Factory 22919 | -5/Factory | Evolved 2 slots: Utility x2 22920 | -5/Factory | Identified exit to Extension 22921 | -5/Factory | Loaded intel: 65 trap records 22923 | -5/Factory | Loaded intel: 4 garrison access locations 23446 | -5/Factory | Entered Extension 23946 | -5/Extension | Disrupted transfer network 23981 | -5/Extension | Rescued a captive Derelict 23982 | -5/Extension | Rescued a captive Derelict 24023 | -5/Extension | Rescued a captive Derelict 24024 | -5/Extension | Rescued a captive Derelict 24128 | -5/Extension | Rescued a captive Derelict 24217 | -5/Extension | Rescued a captive Derelict 24340 | -5/Extension | Build established: Commander-Scrapper 24346 | -5/Extension | First assault squad dispatched 24437 | -5/Extension | Spotted B-75 Beast 24451 | -5/Extension | Destroyed B-75 Beast 24478 | -5/Extension | Spotted B-75 Beast 24479 | -5/Extension | Lost 11 allies 24481 | -5/Extension | Destroyed 8 combat bots 24507 | -5/Extension | Destroyed B-75 Beast 24530 | -5/Extension | Lost 8 parts (1p4u3w) 24631 | -5/Extension | Lost 4 parts (1p1n2u) 24633 | -5/Extension | Rescued A7 24680 | -5/Extension | Rescued a captive Derelict 24681 | -5/Extension | Rescued a captive Derelict 24719 | -5/Extension | Rescued a captive Derelict 24750 | -5/Extension | Build established: Mutant 24765 | -5/Extension | Rescued a captive Derelict 24839 | -5/Extension | Found Imp. Powered Armor 24893 | -5/Extension | Rescued a captive Derelict 24893 | -5/Extension | Rescued a captive Derelict 24911 | -5/Extension | Rescued a captive Derelict 24975 | -5/Extension | Discovered new exit (range 10) 24977 | -5/Extension | Discovered new exit (range 6) 25004 | -5/Extension | Entered Cetus 25004 | -5/Cetus | Accompanied by 6 allies (A7) 25009 | -5/Cetus | Acquired a Cetus Manufacturing Module code from A7 25025 | -5/Cetus | Spotted Cetus Guard 25025 | -5/Cetus | Spotted Cetus Guard 25027 | -5/Cetus | Spotted Cetus Guard 25028 | -5/Cetus | Spotted Cetus Guard 25038 | -5/Cetus | Destroyed Cetus Guard 25041 | -5/Cetus | Allies destroyed Cetus Guard 25049 | -5/Cetus | Allies destroyed Cetus Guard 25049 | -5/Cetus | Destroyed Cetus Guard 25163 | -5/Cetus | Started Cetus Manufacturing Module 25184 | -5/Cetus | Discovered new exit (range 15) 25188 | -5/Cetus | Manufactured an Enhanced Grunt 25213 | -5/Cetus | Manufactured an Enhanced Grunt 25238 | -5/Cetus | Manufactured an Enhanced Grunt 25263 | -5/Cetus | Manufactured an Enhanced Grunt 25288 | -5/Cetus | Manufactured an Enhanced Grunt 25338 | -5/Cetus | Spotted Cetus Guard 25338 | -5/Cetus | Spotted Cetus Guard 25341 | -5/Cetus | Spotted Cetus Guard 25342 | -5/Cetus | Spotted Cetus Guard 25346 | -5/Cetus | Allies destroyed Cetus Guard 25348 | -5/Cetus | Destroyed Cetus Guard 25356 | -5/Cetus | Allies destroyed Cetus Guard 25358 | -5/Cetus | Allies destroyed Cetus Guard 25367 | -5/Cetus | Build established: Scavenger-Tank 25373 | -5/Cetus | Discovered new exit (range 16) 25383 | -5/Cetus | Met Revision 17 25384 | -5/Cetus | Lost 3 allies 25484 | -5/Cetus | Murdered A7 25488 | -5/Cetus | Extracted ID and sensor layout for unrecognized location from A7's data core 25492 | -5/Cetus | Found Prototype Protection 25492 | -5/Cetus | Identified Med. Regenerative Plating 25558 | -5/Cetus | Entered Archives 25558 | -5/Archives | Accompanied by 5 allies 25587 | -5/Archives | Met Zhirov 25593 | -5/Archives | Reinforcements dispatched to Archives 25611 | -5/Archives | Discovered new exit (range 16) 25638 | -5/Archives | Reinforcements dispatched to Archives 25658 | -5/Archives | Zhirov detonated Archives 25660 | -5/Archives | Entered Hub_04(d) 25689 | -5/Hub_04(d) | Lost 5 allies 25872 | -5/Hub_04(d) | Discovered new exit (range 9) 26025 | -5/Hub_04(d) | Spotted B-75 Beast 26045 | -5/Hub_04(d) | Destroyed B-75 Beast 26048 | -5/Hub_04(d) | Garrison activated, responded to threat 26262 | -5/Hub_04(d) | Network Hub disabled 26268 | -5/Hub_04(d) | Spotted Lightning 26269 | -5/Hub_04(d) | Spotted Lightning 26269 | -5/Hub_04(d) | Spotted Lightning 26269 | -5/Hub_04(d) | Discovered new exit (range 10) 26269 | -5/Hub_04(d) | Spotted Lightning 26271 | -5/Hub_04(d) | Spotted Lightning 26272 | -5/Hub_04(d) | Spotted Lightning 26274 | -5/Hub_04(d) | System corruption reached 10% 26284 | -5/Hub_04(d) | Spotted Lightning 26288 | -5/Hub_04(d) | Spotted Lightning 26289 | -5/Hub_04(d) | Spotted Lightning 26291 | -5/Hub_04(d) | Self-destructed Last Messages --------------- 26275_ Penetrated by EMDS Slug. 26277_ EMDS Slug penetrates Wall. 26278_ Wall collapses. 26278_ Slug penetrates Lightning. 26278_ Penetrated by EMDS Slug. 26281_ System corrupted: Matter fused (-8). 26281_ Slug penetrates Lightning. 26281_ Penetrated by EMDS Slug. 26282_ T-07 Excavator exits level. 26282_ Penetrated by EMDS Slug. 26282_ EMDS Slug penetrates Network Hub. 26283_ Penetrated by EMDS Slug. 26285_ System corrupted: Adv. KE Penetrator jammed. 26285_ Slug penetrates Lightning. 26285_ Penetrated by EMDS Slug. 26288_ System corrupted: Adv. KE Penetrator jammed. 26288_ Slug penetrates Wall. 26288_ Penetrated by EMDS Slug. 26290_ Critical hit (Burn: +37). 26290_ Penetrated by EMDS Slug. Map ----- +----------------------------------------------------+ | ????????????# """ """ """ # ??????????????????? | | ????????????# # ??????????????????? | | ????????????# """ """ """ # ??????????????????? | | ????????????# # ??????????????????? | | ????????????####+###+####+#### ??????????????????? | | ???????????????# #### ??????????????????? | | ???????????????# + ??????????????????? | | ??????##########+##+#### #### ??????????????????? | | ?????? ## #??# ??????????????????? | | ?????? ## ##?##??????????????????? | | ??????""" """ """ """ # ####??????????????????? | | ?????? # ??????????????????? | | ??????""" """ """ """ # ??????????????????? | | ?????? # ####??????????????????? | | ??????""" """"T"""" ## ###?????????????????????? | | ?????? """"""""""" ## #???????????????????????? | | ??????##################+########? #?????????????? | | ???????????????????# ;? #?????????????? | | ???????????????????# i## ##????????????? | | ??????#????????????# g " ; #????????????? | | ??????###########??# " b"" hh/ #????????????? | | ??????# #??# "" " h; < #????????????? | | ??????######### #??# " " k; ??????????????? | | " """ #???????# #??# " ;#????????????????? | | #???????# #??# !% #?????????????????? | | " """ #???????# #??# @ u! #?????????????????? | | #???????# #??# #?????????????????? | | "T""" #???????# #??######//#####?????????????????? | | #######?#################gh####??????????????????? | | ????????# # # ??????????????????? | | ????????# #i=+ ""??????????????????? | | ????????# ] !%+%!# ????????????????? | | ????????# *#= # * ???????????????? | | ????????# # ####??????????????????? | | ?????#### # #"T"??????????????????? | | ???### + # ??????????????????? | | ???#"" ## # h ??????????????????? | | ???#T ## ![ #h !"" ??????????????????? | | ???### ## %=%==# hG ? ?"??????????????? | | ?????# ##############/###! h"" "??????????????? | | ######+##############*###= h ?????????????? | | # =*[=[*%!#%%!=%!! ?????????????? | | + """" """" """"!==+[!!]*! ^ #????????????????? | | # """" """" """"= *#*=###+####+##????????????????? | | # """" """" """"%!!#[="# ??????????????????? | | # """" """" """*%!=+= ## ??????????????????? | | # =!%=*=!# ## ??????????????????? | | #####+########/##### ## ??????????????????? | | ????# #??????#!#### #??????? #?# | | ????????????? ? #??????? ##?# ##### | +----------------------------------------------------+ Best States ------------- Heat Dissipation 97 Energy Generation 38 Energy Capacity 515 Matter Stores 300 Matter Capacity 300 Sight Range 16 Terrain Scan Density 10 Jamming Range 14 Armor Coverage 1700 Resistance: KI 30 Evasion (%) 50 Targeting Accuracy 8 Recoil Reduction 4 Offensive Hacking 12 Authchip Count 2 Trap Extractor Capacity 4 Item Schematics ----------------- Adv. Cooling System | -6/Zion | Archive Thermic Laser | -6/Zion | Archive Fission Core | -6/Zion | Archive Lrn. Proton Cannon | -6/Zion | Archive Lgt. Antimatter Reactor | -6/Zion | Archive Remote Shield | -6/Zion | Archive Thermal Shield | -6/Zion | Archive Adv. System Restoration Module | -6/Zion | Archive Imp. Trap Scanner | -6/Zion | Archive Tesla Rifle | -6/Zion | Archive Adv. Terrain Scanner | -6/Zion | Archive Variable Charge Gun | -6/Zion | Archive Robot Schematics ------------------ R-06 Scavenger | -6/Zion | Archive M-22 Extractor | -6/Zion | Archive E-15 Imp | -6/Zion | Archive C-57 Dissector | -6/Zion | Archive Fabricated ------------ Nothing Repaired ---------- Hvy. Assault Rifle | 19% | -9/Materials Lgt. Treads | 52% | -8/Materials Med. Reactive Plating | 28% | -8/Storage Alien Tech Used ----------------- None Achievements -------------- None Challenges ------------ None Game ------ Seed HardcellContainmentUnit Manual? 0 Play Time 02:12:00 Cumulative 683.8 hours Start 2024.11.17 @ 10:51:56 End 2024.11.17 @ 14:09:15 Sessions 1 Manual Loads 0 Difficulty Rogue Special Mode None Game No. 715 Rogue 628 Adventurer 87 Explorer 0 Win Type - Total 42 Types 8/0/28/1/1/1/3/0/0 Lore% 96 Gallery% 94 Achievement% 80 Wizard Run 0 Options --------- Layout 0 ASCII 0 Keyboard 1 Movement Numpad Keybinds 0 Fullscreen 2 Font 18/SmallcapsGlow Map View 76x50 Zoom Use 0% Tactical HUD 1 Map Filters NONE Filters NONE Steam 1 RUN: d1e4de10-1286-40b7-b3ad-fa6d0cf7cb09